bitfinex/quotes_SOLUSD_20260311
["timestamp","ask_amount","ask_price","bid_price","bid_amount"]
[1773205772655,11.55420646,86.549,86.531,1.70028598]
[1773205773044,1.65276594,86.553,86.531,1.70028598]
[1773205773045,1.65276594,86.553,86.54,3.07970293]
[1773205773244,28.88012655,86.565,86.54,3.07970293]
[1773205773245,1.65276594,86.564,86.54,3.07970293]
[1773205773647,1.65276594,86.564,86.536,1.70028598]
[1773205774238,1.65276594,86.563,86.536,1.70028598]
[1773205774654,36.05226071,86.576,86.541,1.70028598]
[1773205774838,11.5506786,86.575,86.56,3.07970293]
[1773205775042,11.5506786,86.575,86.551,1.70028598]
[1773205775341,11.5506786,86.575,86.541,1.70028598]
[1773205775342,1.65276594,86.574,86.541,1.70028598]
[1773205777566,1.66257717,86.572,86.55,3.07970293]
[1773205778766,11.55121229,86.571,86.55,3.07970293]
[1773205778966,13.21378946,86.571,86.55,3.07970293]
[1773205780255,13.21378946,86.571,86.55,4.84990587]
[1773205780865,13.21378946,86.571,86.551,1.77020294]
[1773205781560,1.66257717,86.57,86.551,1.77020294]
[1773205785846,20.38895747,86.576,86.552,1.77020294]
[1773205786356,1.66257717,86.575,86.552,1.77020294]
[1773205786867,1.66257717,86.575,86.56,3.07970293]
[1773205787064,1.66257717,86.573,86.56,3.07970293]
[1773205787270,1.66257717,86.573,86.552,1.77020294]
[1773205788356,1.66257717,86.573,86.56,3.07970293]
[1773205788869,1.66257717,86.571,86.55,3.07970293]
[1773205789078,1.66257717,86.571,86.55,4.84990587]
[1773205789257,1.66257717,86.571,86.551,1.77020294]
[1773205789766,7.17571698,86.576,86.56,4.84316232]
[1773205789981,7.17571698,86.576,86.561,1.76345939]
[1773205791885,7.17571698,86.576,86.56,3.07970293]
[1773205792100,7.17571698,86.576,86.532,0.14216157]
[1773205792101,1.75911589,86.569,86.506,1.76345939]
[1773205792385,1.75911589,86.549,86.521,1.76345939]
[1773205794086,1.75911589,86.539,86.503,1.76345939]
[1773205794303,1.75911589,86.519,86.49,4.84316232]
[1773205794966,1.75911589,86.525,86.501,1.76345939]
[1773205796280,11.55655198,86.531,86.503,1.76345939]
[1773205796481,11.55655198,86.531,86.511,1.76345939]
[1773205798079,13.31566787,86.531,86.511,1.76345939]
[1773205799272,1.75911589,86.537,86.511,1.76345939]
[1773205799467,11.55548365,86.539,86.521,1.76345939]
[1773205800064,13.31459954,86.539,86.513,1.76345939]
[1773205800373,13.31459954,86.539,86.52,3.07970293]
[1773205800773,1.75911589,86.539,86.52,4.84316232]
[1773205800980,13.31459954,86.539,86.52,4.84316232]
[1773205801175,11.55499345,86.543,86.521,1.76345939]
[1773205801689,11.55414851,86.549,86.521,1.76345939]
[1773205801989,1.75911589,86.548,86.521,1.76345939]
[1773205802378,1.75911589,86.529,86.5,3.07970293]
[1773205802790,1.75911589,86.529,86.501,1.76345939]
[1773205804289,1.75911589,86.541,86.521,1.76345939]
[1773205804488,11.55478017,86.545,86.521,1.76345939]
[1773205805175,11.55428201,86.548,86.521,1.76345939]
[1773205805573,1.75911589,86.547,86.521,1.76345939]
[1773205806290,1.75911589,86.545,86.521,1.76345939]
[1773205806586,1.75911589,86.545,86.514,1.76345939]
[1773205806794,1.75911589,86.545,86.506,1.76345939]
[1773205807096,1.75911589,86.529,86.5,4.84316232]
[1773205807285,1.75911589,86.529,86.501,1.76345939]
[1773205809296,1.75911589,86.527,86.501,1.76345939]
[1773205809792,1.75911589,86.527,86.495,11.56129689]
[1773205811296,11.55721979,86.526,86.495,1.76345939]
[1773205811493,1.75911589,86.525,86.495,1.76345939]
[1773205812003,1.75911589,86.525,86.5,3.07958456]
[1773205812198,1.75911589,86.525,86.5,4.84304395]
[1773205812896,1.75911589,86.519,86.49,3.07958456]
[1773205813298,1.75911589,86.519,86.481,1.76345939]
[1773205814785,1.75911589,86.517,86.482,1.76345939]
[1773205816797,1.75911589,86.515,86.482,1.76345939]
[1773205817981,1.75911589,86.509,86.482,1.76345939]
[1773205818810,1.75911589,86.507,86.482,1.76345939]
[1773205819303,3.07958456,86.52,86.491,1.76345939]
[1773205819304,11.55914651,86.512,86.491,1.76345939]
[1773205820379,1.6987085,86.511,86.491,1.76345939]
[1773205820584,1.6987085,86.509,86.485,1.74748461]
[1773205822794,1.6987085,86.507,86.485,1.74748461]
[1773205824808,11.55989179,86.506,86.487,1.74748461]
[1773205825113,1.6987085,86.527,86.491,1.74748461]
[1773205825411,1.6987085,86.509,86.477,1.74748461]
[1773205825612,1.6987085,86.499,86.477,1.74748461]
[1773205828006,13.25966944,86.498,86.477,1.74748461]
[1773205828192,1.6987085,86.497,86.477,1.74748461]
[1773205830096,1.6987085,86.502,86.477,1.74748461]
[1773205830497,1.6987085,86.508,86.49,1.74748461]
[1773205830798,1.6987085,86.508,86.471,1.74748461]
[1773205831195,1.6987085,86.508,86.472,1.74748461]
[1773205835506,1.6987085,86.506,86.472,1.74748461]
[1773205838226,13.25873393,86.505,86.474,1.74748461]
[1773205838522,1.6987085,86.504,86.474,1.74748461]
[1773205839422,1.66185391,86.529,86.491,1.74626187]
[1773205839620,1.66185391,86.529,86.511,1.74626187]
[1773205840324,11.55695266,86.528,86.511,1.74626187]
[1773205842220,13.2190737,86.526,86.505,1.74626187]
[1773205842427,1.66185391,86.525,86.505,1.74626187]
[1773205844828,1.66185391,86.524,86.505,1.74626187]
[1773205846809,1.66185391,86.522,86.505,1.74626187]
[1773205847226,1.66185391,86.528,86.507,1.74626187]
[1773205847621,1.66185391,86.528,86.511,1.74626187]
[1773205848133,1.66185391,86.528,86.5,4.82584643]
[1773205848431,1.66185391,86.528,86.501,11.56055999]
[1773205848730,1.66185391,86.528,86.502,1.74626187]
[1773205849428,1.67509928,86.519,86.481,28.90795484]
[1773205849628,1.67509928,86.509,86.48,14.64291519]
[1773205850028,1.67509928,86.509,86.481,1.75011253]
[1773205850736,1.67509928,86.509,86.48,14.64291519]
[1773205850737,1.67509928,86.519,86.5,3.07958456]
[1773205851031,1.67509928,86.519,86.499,1.75011253]
[1773205851415,1.67509928,86.519,86.491,1.75011253]
[1773205851931,1.67509928,86.517,86.492,1.75011253]
[1773205854628,1.67509928,86.517,86.493,11.56162926]
[1773205854815,1.67509928,86.517,86.494,1.75011253]
[1773205856015,1.67509928,86.517,86.5,3.07958456]
[1773205856822,11.55828844,86.518,86.501,1.75011253]
[1773205858733,1.67509928,86.518,86.501,1.75011253]
[1773205860429,1.67509928,86.518,86.495,1.75011253]
[1773205860625,28.88916988,86.538,86.501,1.75011253]
[1773205860827,1.67509928,86.536,86.511,1.75011253]
[1773205863046,1.67509928,86.536,86.513,1.75011253]
[1773205863623,1.67509928,86.536,86.512,11.55909006]
[1773205863624,1.67509928,86.542,86.521,1.75011253]
[1773205864139,1.67509928,86.542,86.513,1.75011253]
[1773205865044,1.67509928,86.539,86.51,3.07958456]
[1773205865338,1.67509928,86.539,86.462,92.52599898]
[1773205865339,1.67509928,86.529,86.485,1.75011253]
[1773205865729,1.67509928,86.529,86.483,28.9071314]
[1773205866042,1.67509928,86.529,86.501,1.75011253]
[1773205867249,1.67509928,86.527,86.5,3.07958456]
[1773205868542,1.67509928,86.527,86.501,11.56055999]
[1773205868748,1.67509928,86.527,86.502,1.75011253]
[1773205869845,1.67509928,86.525,86.502,1.75011253]
[1773205871841,1.67509928,86.523,86.502,1.75011253]
[1773205872733,1.67509928,86.523,86.5,3.07958456]
[1773205873145,1.67509928,86.523,86.501,1.75011253]
[1773205873740,11.55775409,86.522,86.501,1.75011253]
[1773205873949,11.55775409,86.522,86.503,1.75011253]
[1773205876547,1.67509928,86.531,86.511,1.75011253]
[1773205877541,1.67509928,86.537,86.511,1.75011253]
[1773205877943,11.55548365,86.539,86.521,1.75011253]
[1773205878145,13.23058293,86.539,86.521,1.75011253]
[1773205878349,1.67509928,86.538,86.521,1.75011253]
[1773205880154,1.67509928,86.538,86.511,1.74707156]
[1773205880853,1.7567425,86.537,86.513,11.55890213]
[1773205881157,1.7567425,86.537,86.513,13.30597369]
[1773205881654,1.7567425,86.537,86.514,1.74707156]
[1773205886858,1.7567425,86.537,86.521,1.74707156]
[1773205894577,1.7567425,86.537,86.521,1.70166676]
[1773205894876,13.31102451,86.548,86.521,1.70166676]
[1773205895078,11.55428201,86.548,86.53,3.07918249]
[1773205895264,1.7567425,86.547,86.52,3.07918249]
[1773205895463,1.7567425,86.547,86.53,3.07918249]
[1773205895791,1.7567425,86.562,86.54,3.07918249]
[1773205896082,1.7567425,86.56,86.54,3.07918249]
[1773205896579,46.19321768,86.593,86.54,3.07918249]
[1773205896580,1.6581064,86.57,86.541,1.29861984]
[1773205896776,11.55147916,86.569,86.551,1.29861984]
[1773205896969,11.55147916,86.569,86.55,3.07918249]
[1773205896970,1.6581064,86.568,86.55,3.07918249]
[1773205897860,1.6581064,86.568,86.549,1.2986304]
[1773205898074,1.6581064,86.568,86.55,4.37781289]
[1773205899477,1.6581064,86.568,86.55,1.2986304]
[1773205902680,1.6581064,86.566,86.541,1.29876409]
[1773205902978,1.6581064,86.566,86.497,46.24401944]
[1773205902979,1.6581064,86.559,86.531,1.29876409]
[1773205903982,1.6581064,86.559,86.54,3.07918249]
[1773205904783,1.6581064,86.559,86.512,0.14216157]
[1773205904784,1.6581064,86.557,86.53,3.07918249]
[1773205906183,1.6581064,86.557,86.527,11.55708208]
[1773205906679,1.6581064,86.557,86.527,12.85610206]
[1773205906975,1.6581064,86.555,86.527,12.85610206]
[1773205907775,1.6581064,86.555,86.53,3.07918249]
[1773205909766,11.55348106,86.554,86.53,3.07918249]
[1773205909966,1.8167026,86.553,86.53,3.07918249]
[1773205911587,11.55348106,86.554,86.513,28.89714981]
[1773205911588,1.8167026,86.549,86.52,4.37856479]
[1773205911791,1.8167026,86.549,86.52,3.07918249]
[1773205912084,1.8167026,86.547,86.521,11.55788768]
[1773205912267,1.8167026,86.547,86.522,1.29944029]
[1773205914482,11.55428201,86.548,86.531,1.29955427]
[1773205914686,11.55428201,86.548,86.523,11.55762051]
[1773205914687,1.8167026,86.557,86.54,3.07918249]
[1773205914885,13.36981973,86.557,86.54,4.37873676]
[1773205915271,1.8167026,86.557,86.54,4.37873676]
[1773205915474,1.8167026,86.568,86.55,3.07918249]
[1773205916468,1.8167026,86.566,86.54,3.07918249]
[1773205916774,1.8167026,86.566,86.53,3.07918249]
[1773205917901,1.8167026,86.559,86.53,3.07918249]
[1773205918482,1.8167026,86.557,86.53,14.6357902]
[1773205921999,1.8167026,86.555,86.53,14.6357902]
[1773205922205,1.8167026,86.555,86.52,3.07918249]
[1773205922700,1.8167026,86.555,86.521,1.29998473]
[1773205924003,1.8167026,86.553,86.522,1.30003579]
[1773205926400,1.8167026,86.551,86.522,1.30003579]
[1773205927797,11.55401502,86.55,86.522,1.30003579]
[1773205927981,1.8167026,86.549,86.522,1.30003579]
[1773205930825,11.55428201,86.548,86.522,1.30003579]
[1773205930981,1.8167026,86.547,86.522,1.30003579]
[1773205931883,1.8167026,86.545,86.524,1.30042375]
[1773205932080,1.8167026,86.55,86.531,1.30042375]
[1773205934302,1.8167026,86.548,86.524,1.30056024]
[1773205935608,1.8167026,86.546,86.524,1.30056024]
[1773205936806,11.55468253,86.545,86.524,1.30056024]
[1773205937014,13.37138513,86.545,86.524,1.30056024]
[1773205938293,1.8167026,86.544,86.524,1.30056024]
[1773205939803,1.8167026,86.544,86.526,1.30081942]
[1773205940012,11.55414851,86.549,86.526,1.30081942]
[1773205940013,13.35457313,86.549,86.526,1.30081942]
[1773205940715,1.80042462,86.548,86.528,1.3008609]
[1773205943012,13.35471741,86.548,86.528,1.3008609]
[1773205943210,11.55429279,86.548,86.528,1.3008609]
[1773205943415,1.80042462,86.547,86.528,1.3008609]
[1773205944615,1.80042462,86.547,86.53,4.3786484]
[1773205946318,11.55454902,86.546,86.53,4.3786484]
[1773205946712,13.35497364,86.546,86.53,4.3786484]
[1773205947311,1.80042462,86.545,86.509,0.14216157]
[1773205947816,1.80042462,86.545,86.53,3.07762631]
[1773205948114,13.39266591,86.544,86.509,0.14216157]
[1773205948407,1.83784987,86.543,86.53,3.07762631]
[1773205948612,1.83784987,86.543,86.509,0.14216157]
[1773205948801,1.83784987,86.543,86.53,3.07762631]
[1773205949190,11.55508308,86.542,86.509,0.14216157]
[1773205949792,13.39293295,86.542,86.53,3.07762631]
[1773205950105,13.39293295,86.542,86.52,3.07762631]
[1773205951406,1.83784987,86.541,86.52,3.07762631]
[1773205952910,1.83784987,86.541,86.52,3.0]
[1773205953214,1.83784987,86.541,86.505,0.14216157]
[1773205953718,1.83784987,86.539,86.52,3.07762631]
[1773205957922,1.83784987,86.537,86.52,3.07762631]
[1773205958630,1.83784987,86.537,86.503,61.2]
[1773205958631,1.83784987,86.537,86.473,39.09710589]
[1773205958924,1.83784987,86.537,86.5,3.07762631]
[1773205959505,1.83784987,86.537,86.491,0.14216157]
[1773205959908,1.83784987,86.535,86.491,0.14216157]
[1773205960312,1.83784987,86.535,86.51,3.07762631]
[1773205960627,1.83784987,86.535,86.49,6.77146033]
[1773205960847,1.83784987,86.535,86.51,3.07762631]
[1773205961124,1.83784987,86.533,86.51,3.07762631]
[1773205961306,1.83784987,86.533,86.5,3.07762631]
[1773205962215,1.83784987,86.529,86.5,3.07762631]
[1773205962523,40.44652967,86.534,86.49,3.07762631]
[1773205962524,1.83784987,86.519,86.49,3.07762631]
[1773205962708,1.83784987,86.519,86.478,3.69383402]
[1773205962709,1.83784987,86.519,86.48,3.07762631]
[1773205963109,1.83784987,86.517,86.49,3.07762631]
[1773205964807,1.83784987,86.515,86.49,3.07762631]
[1773205965828,1.83784987,86.515,86.482,3.69383402]
[1773205966824,11.55882284,86.514,86.482,3.69383402]
[1773205967126,1.83784987,86.513,86.482,3.69383402]
[1773205969812,11.55909006,86.512,86.482,3.69383402]
[1773205970118,1.83784987,86.511,86.482,3.69383402]
[1773205971411,40.45775053,86.51,86.468,11.56487382]
[1773205971632,40.45775053,86.51,86.47,3.07762631]
[1773205971633,1.83784987,86.509,86.47,3.07762631]
[1773205971833,1.83784987,86.509,86.48,3.07762631]
[1773205972927,40.45775053,86.51,86.481,0.14216157]
[1773205973229,40.45775053,86.51,86.49,3.07762631]
[1773205973529,1.83784987,86.509,86.49,3.07762631]
[1773205974834,11.55962454,86.508,86.49,3.67762631]
[1773205975029,11.55962454,86.508,86.49,0.6]
[1773205975727,11.55962454,86.508,86.481,0.14216157]
[1773205975926,1.83784987,86.508,86.481,0.14216157]
[1773205978818,11.55975816,86.507,86.481,0.14216157]
[1773205979022,1.83784987,86.506,86.481,0.14216157]
[1773205981528,1.83784987,86.504,86.481,0.14216157]
[1773205982941,1.83784987,86.504,86.48,3.07762631]
[1773205983143,1.83784987,86.504,86.473,61.2]
[1773205984236,1.83784987,86.502,86.473,61.2]
[1773205985054,1.83784987,86.502,86.471,0.14216157]
[1773205985928,1.83784987,86.502,86.48,3.07762631]
[1773205986128,1.83784987,86.5,86.471,0.14216157]
[1773205987946,1.83784987,86.498,86.471,0.14216157]
[1773205990945,1.83784987,86.496,86.471,0.14216157]
[1773205993850,11.56136192,86.495,86.471,0.14216157]
[1773205994047,1.83784987,86.494,86.471,0.14216157]
[1773205996051,11.56162926,86.493,86.472,3.69383402]
[1773205996452,11.56162926,86.493,86.48,3.07762631]
[1773205997640,11.56162926,86.493,86.48,3.08039085]
[1773205998545,11.55949092,86.509,86.481,11.70539511]
[1773205998737,1.83784987,86.508,86.47,3.08039085]
[1773205999052,1.83784987,86.508,86.471,0.14216157]
[1773205999351,1.83784987,86.499,86.461,0.14216157]
[1773206000055,1.83784987,86.497,86.461,11.70805023]
[1773206001041,1.83784987,86.497,86.47,3.08039085]
[1773206003256,11.56122826,86.496,86.47,3.08039085]
[1773206003462,1.83784987,86.495,86.47,3.08039085]
[1773206006063,1.83784987,86.493,86.47,3.08039085]
[1773206010568,11.56176293,86.492,86.47,3.08039085]
[1773206010772,1.83784987,86.491,86.47,3.08039085]
[1773206011466,1.83784987,86.491,86.462,11.56570709]
[1773206021074,1.83784987,86.489,86.462,11.56570709]
[1773206022776,1.83784987,86.487,86.47,3.08039085]
[1773206022975,1.83784987,86.487,86.462,11.56570709]
[1773206025478,1.83784987,86.485,86.462,11.56570709]
[1773206025682,1.83784987,86.485,86.46,0.2]
[1773206026178,1.83784987,86.483,86.46,0.2]
[1773206026758,1.83784987,86.479,86.46,0.2]
[1773206028170,1.83784987,86.477,86.46,0.2]
[1773206028963,1.83784987,86.477,86.46,1e-08]
[1773206030880,1.83784987,86.475,86.46,1e-08]
[1773206032669,11.56390212,86.476,86.46,1e-08]
[1773206032670,1.83784987,86.473,86.46,1e-08]
[1773206041180,57.80028791,86.505,86.45,3.28039085]
[1773206041181,1.83784987,86.471,86.45,0.2]
[1773206041393,1.83784987,86.469,86.43,3.28039085]
[1773206041768,11.56443704,86.472,86.43,0.2]
[1773206041769,1.83784987,86.459,86.43,0.2]
[1773206041965,1.63784986,86.459,86.43,0.2]
[1773206042182,40.47552964,86.472,86.441,0.20064869]
[1773206042876,49.32886893,86.49,86.46,3.28103954]
[1773206042877,11.56216397,86.489,86.46,3.28103954]
[1773206043404,3.08039085,86.5,86.46,3.28103954]
[1773206044077,1.73784987,86.499,86.46,3.28103954]
[1773206044280,1.73784987,86.499,86.46,3.08039085]
[1773206045389,1.73784987,86.497,86.46,3.08039085]
[1773206048073,1.73784987,86.495,86.46,3.08039085]
[1773206048888,1.73784987,86.495,86.455,11.56667278]
[1773206049086,1.73784987,86.489,86.452,0.20058351]
[1773206049886,1.73784987,86.489,86.46,0.6]
[1773206051092,1.73784987,86.487,86.46,0.6]
[1773206052088,1.73784987,86.485,86.46,0.6]
[1773206054693,1.73784987,86.483,86.46,0.6]
[1773206054890,1.73784987,86.483,86.46,0.20037423]
[1773206055091,1.73784987,86.483,86.455,0.20037423]
[1773206055478,3.08039085,86.48,86.449,0.20034074]
[1773206055678,1.73784987,86.469,86.433,11.22491352]
[1773206056097,1.73784987,86.459,86.434,11.56952125]
[1773206056498,1.73784987,86.459,86.434,11.76982889]
[1773206056900,1.73784987,86.459,86.435,0.20030764]
[1773206057403,1.73784987,86.457,86.435,0.20030764]
[1773206057797,1.73784987,86.457,86.435,0.20027491]
[1773206061409,1.73784987,86.469,86.441,0.20011684]
[1773206062010,1.73784987,86.467,86.441,0.20011684]
[1773206062606,1.73784987,86.467,86.436,0.2000863]
[1773206065011,1.73784987,86.465,86.438,0.20002629]
[1773206067620,1.73784987,86.463,86.438,0.20002629]
[1773206067993,1.73784987,86.463,86.44,0.19993882]
[1773206070310,1.73784987,86.461,86.441,11.56858435]
[1773206070507,1.73784987,86.461,86.441,11.76843868]
[1773206074213,3.0838065,86.47,86.441,11.76843868]
[1773206074214,1.73784987,86.481,86.451,0.19974613]
[1773206074403,1.73784987,86.481,86.461,0.19974613]
[1773206075520,1.73784987,86.481,86.452,0.19971986]
[1773206076310,1.73784987,86.481,86.461,0.19969388]
[1773206077398,11.56336725,86.48,86.455,0.19964283]
[1773206077595,1.79511261,86.479,86.455,0.19964283]
[1773206078398,3.0838065,86.49,86.455,0.19964283]
[1773206078399,1.79511261,86.477,86.455,0.19964283]
[1773206079619,1.79511261,86.477,86.456,11.56657721]
[1773206079815,1.79511261,86.477,86.456,11.76617015]
[1773206080016,1.79511261,86.477,86.457,0.19959294]
[1773206081017,1.79511261,86.477,86.458,11.56630965]
[1773206081222,1.79511261,86.477,86.458,11.76585384]
[1773206082521,1.79511261,86.477,86.454,0.19952023]
[1773206082821,1.79511261,86.477,86.46,3.0838065]
[1773206086828,1.79511261,86.519,86.471,0.19942712]
[1773206087013,1.79511261,86.509,86.481,0.19942712]
[1773206087323,3.0838065,86.5,86.471,0.14216157]
[1773206087518,1.79511261,86.489,86.461,0.14216157]
[1773206087722,1.79511261,86.479,86.451,11.70936587]
[1773206087923,1.79511261,86.479,86.446,0.19940451]
[1773206088226,1.79511261,86.479,86.447,11.56778141]
[1773206088442,1.79511261,86.479,86.447,11.76716357]
[1773206088812,1.79511261,86.469,86.447,11.76716357]
[1773206089212,1.79511261,86.469,86.447,11.56778141]
[1773206095716,1.74536143,86.459,86.438,11.56897074]
[1773206096822,1.74536143,86.459,86.439,0.1991922]
[1773206097519,1.74536143,86.467,86.442,0.19917228]
[1773206099130,1.74536143,86.465,86.442,0.19917228]
[1773206100412,1.74536143,86.465,86.444,0.1991139]
[1773206100823,1.74536143,86.465,86.443,11.56831669]
[1773206101710,1.74536143,86.465,86.44,3.0838065]
[1773206102018,1.74536143,86.465,86.441,0.19909489]
[1773206107042,1.74536143,86.465,86.443,0.19900305]
[1773206108038,1.74536143,86.464,86.443,0.19900305]
[1773206109027,1.74536143,86.462,86.434,11.56952125]
[1773206109631,1.74536143,86.462,86.435,0.19895043]
[1773206112938,1.74536143,86.462,86.44,3.28270611]
[1773206113140,1.74536143,86.473,86.441,0.19889961]
[1773206113843,1.74536143,86.469,86.441,0.19889961]
[1773206114022,1.74536143,86.469,86.436,11.56925355]
[1773206114220,1.74536143,86.469,86.437,0.19886669]
[1773206114422,1.74536143,86.469,86.441,0.19886669]
[1773206119650,1.82358838,86.468,86.443,0.19877239]
[1773206121146,1.82358838,86.468,86.442,11.07340621]
[1773206127641,1.83723606,86.466,86.442,11.07340621]
[1773206127946,3.08312361,86.45,86.43,0.2]
[1773206128151,57.82047588,86.475,86.4,29.13509802]
[1773206128152,3.08312361,86.44,86.42,11.77135932]
[1773206129346,11.56815969,86.445,86.42,11.77135932]
[1773206130147,1.82358838,86.444,86.42,11.77135932]
[1773206133952,1.82358838,86.439,86.42,11.77135932]
[1773206135838,1.82358838,86.439,86.421,0.16200533]
[1773206140458,11.56751416,86.449,86.421,0.16200533]
[1773206140648,3.08312361,86.48,86.441,1.76264741]
[1773206141153,11.56372116,86.478,86.441,1.76264741]
[1773206141739,11.56441548,86.473,86.441,1.76264741]
[1773206142460,11.56441548,86.473,86.443,1.76264741]
[1773206142758,1.72514304,86.463,86.443,1.76264741]
[1773206143147,19.38605824,86.462,86.443,1.76264741]
[1773206143474,1.72514304,86.461,86.442,11.56845052]
[1773206151871,1.65909045,86.46,86.434,1.74701636]
[1773206152071,1.65909045,86.46,86.431,11.56992282]
[1773206152271,1.65909045,86.459,86.431,11.56992282]
[1773206152657,1.65909045,86.459,86.431,13.31693918]
[1773206153057,1.65909045,86.459,86.432,1.74701636]
[1773206153259,1.65909045,86.459,86.431,11.56992282]
[1773206153969,1.65909045,86.457,86.431,11.56992282]
[1773206154673,1.65909045,86.457,86.426,1.74701636]
[1773206155769,1.65909045,86.449,86.421,11.57125886]
[1773206156273,1.65909045,86.447,86.421,11.57125886]
[1773206157071,1.65909045,86.447,86.42,0.2]
[1773206157777,1.65909045,86.447,86.42,11.77126618]
[1773206157980,1.65909045,86.445,86.421,1.74701636]
[1773206159474,1.65909045,86.459,86.431,1.74701636]
[1773206159777,1.65909045,86.458,86.431,1.74701636]
[1773206160483,1.65909045,86.456,86.433,1.74701636]
[1773206162165,1.65909045,86.454,86.433,1.74701636]
[1773206165686,1.65909045,86.454,86.435,1.74701636]
[1773206165883,13.22525241,86.46,86.435,1.74701636]
[1773206166183,1.65909045,86.46,86.435,1.74701636]
[1773206167065,11.56600025,86.461,86.437,1.74701636]
[1773206167469,17.4609152,86.462,86.441,1.74701636]
[1773206167664,19.12000565,86.462,86.441,1.74701636]
[1773206167868,17.4609152,86.462,86.441,1.74701636]
[1773206168080,1.65909045,86.461,86.441,1.74701636]
[1773206168887,1.65909045,86.461,86.443,1.74701636]
[1773206169087,17.4609152,86.462,86.414,5.44085038]
[1773206169088,1.65909045,86.459,86.414,5.44085038]
[1773206169267,1.65909045,86.459,86.43,3.08312361]
[1773206169464,1.65909045,86.459,86.431,1.74701636]
[1773206169672,1.65909045,86.459,86.433,1.74701636]
[1773206173688,1.65909045,86.459,86.435,1.74701636]
[1773206173891,17.4609152,86.462,86.441,1.74701636]
[1773206176991,16.8609152,86.462,86.443,1.74701636]
[1773206180102,16.8609152,86.462,86.445,1.80170859]
[1773206180974,1.65909045,86.47,86.446,1.80170859]
[1773206182395,1.65909045,86.47,86.448,1.80170859]
[1773206183790,1.65909045,86.47,86.45,1.80170859]
[1773206184501,1.82371043,86.469,86.449,11.56751379]
[1773206185897,1.82371043,86.468,86.449,11.56751379]
[1773206186197,1.82371043,86.468,86.45,1.80170859]
[1773206186696,1.82371043,86.468,86.449,11.56751379]
[1773206188596,1.82371043,86.468,86.448,1.80170859]
[1773206191090,1.82371043,86.468,86.449,11.56751379]
[1773206195710,1.82371043,86.468,86.449,1.80170859]
[1773206196203,1.82371043,86.479,86.451,1.80170859]
[1773206198103,1.79712506,86.477,86.452,11.56711238]
[1773206200308,1.79712506,86.475,86.452,1.69870331]
[1773206204186,1.79712506,86.473,86.45,11.56733886]
[1773206205007,1.79712506,86.469,86.45,11.56733886]
[1773206206106,1.79712506,86.467,86.432,1.69870331]
[1773206206292,1.79712506,86.459,86.432,13.26849227]
[1773206207304,1.79712506,86.459,86.433,1.69870331]
[1773206208546,1.79712506,86.459,86.435,1.69870331]
[1773206213096,1.79712506,86.459,86.436,11.56925355]
[1773206213302,1.79712506,86.459,86.437,1.73576072]
[1773206216119,1.79712506,86.459,86.438,11.56898586]
[1773206216300,1.79712506,86.459,86.438,13.30474658]
[1773206218919,1.80889261,86.458,86.434,11.56946255]
[1773206219218,1.80889261,86.458,86.434,13.30522327]
[1773206219720,1.80889261,86.458,86.435,1.73576072]
[1773206220101,1.80889261,86.458,86.434,1.73576072]
[1773206220300,1.80889261,86.479,86.441,1.73576072]
[1773206221820,1.80889261,86.478,86.443,1.73576072]
[1773206223605,1.80889261,86.459,86.426,1.73576072]
[1773206223902,1.80889261,86.459,86.4,3.28280126]
[1773206223903,1.80889261,86.447,86.418,1.73576072]
[1773206224113,1.80889261,86.447,86.417,11.57173869]
[1773206224309,1.80889261,86.447,86.42,11.77128549]
[1773206224621,11.5676476,86.448,86.42,0.2]
[1773206224622,1.80889261,86.439,86.42,0.2]
[1773206225923,1.80889261,86.437,86.41,0.2]
[1773206226724,1.80889261,86.437,86.41,11.77260858]
[1773206227315,3.08280126,86.43,86.41,0.2]
[1773206227516,3.08280126,86.43,86.401,0.14216157]
[1773206227517,1.80889261,86.429,86.401,11.57394011]
[1773206227710,1.80889261,86.409,86.4,0.2]
[1773206228224,0.14216157,86.453,86.4,0.2]
[1773206228225,3.08280126,86.44,86.402,1.73576072]
[1773206228408,11.56885202,86.439,86.402,1.73576072]
[1773206228613,3.08280126,86.43,86.4,0.2]
[1773206228820,3.08280126,86.42,86.401,11.57394011]
[1773206229014,3.08280126,86.43,86.401,11.57394011]
[1773206229626,3.08280126,86.42,86.401,11.57394011]
[1773206230128,1.80889261,86.419,86.402,1.73576072]
[1773206231074,1.80889261,86.419,86.401,11.57394011]
[1773206231338,1.80889261,86.417,86.4,0.2]
[1773206232732,1.80889261,86.417,86.39,3.28280126]
[1773206232733,1.80889261,86.409,86.39,0.2]
[1773206233824,1.80889261,86.415,86.391,1.73576072]
[1773206234613,1.80889261,86.415,86.393,1.73576072]
[1773206237141,1.80889261,86.415,86.394,11.57487788]
[1773206237341,1.80889261,86.415,86.395,1.73576072]
[1773206238567,1.80889261,86.399,86.38,0.2]
[1773206238738,1.80889261,86.399,86.381,11.57661985]
[1773206239247,3.08280126,86.41,86.383,1.73576072]
[1773206239444,11.572074,86.415,86.383,1.73576072]
[1773206240146,3.08280126,86.43,86.401,1.76460871]
[1773206240835,11.57019056,86.429,86.401,1.76460871]
[1773206241346,1.60885917,86.428,86.401,1.76460871]
[1773206241520,11.57019056,86.429,86.39,3.08280126]